fUSD/lending_fUSD_20260530
["ID","MTS","AMOUNT","RATE_DAILY","PERIOD"]
[423414889,1780093685000,389.59907831,0.00039374,120]
[423414891,1780093685000,151.0,0.00039374,120]
[423414893,1780093685000,500.0,0.00039374,120]
[423414892,1780093685000,151.0,0.00039374,120]
[423414890,1780093685000,152.0,0.00039374,120]
[423414894,1780093685000,185.47838175,0.00039374,120]
[423414897,1780093685000,500.0,0.00039374,120]
[423414896,1780093685000,151.0,0.00039374,120]
[423414899,1780093685000,226.82536701,0.00039374,120]
[423414898,1780093685000,151.0,0.00039374,120]
[423414901,1780093685000,151.0,0.00039374,120]
[423414900,1780093685000,500.0,0.00039374,120]
[423414902,1780093685000,500.0,0.00039374,120]
[423414903,1780093685000,151.0,0.00039374,120]
[423414895,1780093685000,151.0,0.00039374,120]
[423414904,1780093686000,500.0,0.00039374,120]
[423414905,1780093686000,151.0,0.00039374,120]
[423414907,1780093686000,151.0,0.00039374,120]
[423414906,1780093686000,500.0,0.00039374,120]
[423414908,1780093686000,500.0,0.00039374,120]
[423414909,1780093686000,151.0,0.00039374,120]
[423414912,1780093686000,500.0,0.00039374,120]
[423414911,1780093686000,151.0,0.00039374,120]
[423414913,1780093686000,151.0,0.00039374,120]
[423414914,1780093686000,151.0,0.00039374,120]
[423414915,1780093686000,500.0,0.00039374,120]
[423414916,1780093686000,151.0,0.00039374,120]
[423414917,1780093686000,500.0,0.00039374,120]
[423414910,1780093686000,500.0,0.00039374,120]
[423414923,1780093687000,151.0,0.00039374,120]
[423414918,1780093687000,151.0,0.00039374,120]
[423414919,1780093687000,151.0,0.00039374,120]
[423414921,1780093687000,151.0,0.00039374,120]
[423414922,1780093687000,500.0,0.00039374,120]
[423414920,1780093687000,500.0,0.00039374,120]
[423414924,1780093687000,500.0,0.00039374,120]
[423414926,1780093687000,500.0,0.00039374,120]
[423414927,1780093687000,151.0,0.00039374,120]
[423414928,1780093687000,500.0,0.00039374,120]
[423414930,1780093687000,304.41266137,0.00039374,120]
[423414929,1780093687000,151.0,0.00039374,120]
[423414925,1780093687000,151.0,0.00039374,120]
[423414931,1780093731000,330.0,9.863e-05,3]
[423415047,1780093833000,-29.59298632,7.844e-05,2]
[423415041,1780093833000,-792.44782853,7.836e-05,2]
[423415043,1780093833000,-470.40701368,7.844e-05,2]
[423415049,1780093833000,-165.49027956,7.844e-05,2]
[423415051,1780093833000,-291.82144897,7.844e-05,2]
[423415031,1780093833000,-158.42,7.776e-05,2]
[423415033,1780093833000,-300.0,7.836e-05,2]
[423415038,1780093833000,-346.276,7.836e-05,2]
[423415025,1780093833000,-158.42,7.615e-05,2]
[423415029,1780093833000,-158.42,7.695e-05,2]
[423415027,1780093833000,-354.79920637,7.655e-05,2]
[423415035,1780093833000,-61.27617147,7.836e-05,2]
[423415054,1780093833000,-208.17855103,7.844e-05,2]
[423415059,1780093833000,-240.20194973,7.844e-05,2]
[423415057,1780093833000,-178.69207178,7.844e-05,2]
[423415066,1780093833000,-511.11758065,7.845e-05,2]
[423415061,1780093833000,-60886.76018643,7.845e-05,2]
[423415064,1780093833000,-584.79955105,7.845e-05,2]
[423415068,1780093833000,-2021.91916918,7.845e-05,2]
[423415071,1780093833000,-2467.074667,7.845e-05,2]
[423415075,1780093833000,-3097.0,7.845e-05,2]
[423415073,1780093833000,-1313.69953,7.845e-05,2]
[423415078,1780093833000,-483.96697237,7.845e-05,2]
[423415080,1780093833000,-320.124,7.845e-05,2]
[423415083,1780093833000,-412.77728069,7.845e-05,2]
[423415085,1780093833000,-387.105,7.845e-05,2]
[423415056,1780093833000,-500.0,7.844e-05,2]
[423415378,1780093838000,-5631.21105914,7.845e-05,2]
[423415377,1780093838000,-1071.60360845,7.845e-05,2]
[423415379,1780093838000,-1937.96253572,7.845e-05,2]
[423415380,1780093838000,-1112.31653355,7.845e-05,2]
[423415382,1780093838000,-1732.42,7.845e-05,2]
[423415384,1780093838000,-580.29201335,7.845e-05,2]
[423415383,1780093838000,-769.34,7.845e-05,2]
[423415381,1780093838000,-189152.21859579,7.845e-05,2]
[423415386,1780093839000,-721.24684788,7.845e-05,2]
[423415385,1780093839000,-744.66953343,7.845e-05,2]
[423415484,1780093840000,-158.42,8.176e-05,2]
[423415494,1780093840000,-601.41126292,8.219e-05,2]
[423415488,1780093840000,-500.0,8.219e-05,2]
[423415490,1780093840000,-500.0,8.219e-05,2]
[423415486,1780093840000,-1562.992456,8.178e-05,2]
[423415496,1780093840000,-500.0,8.219e-05,2]
[423415498,1780093840000,-500.0,8.219e-05,2]
[423415502,1780093840000,-500.0,8.219e-05,2]
[423415500,1780093840000,-500.0,8.219e-05,2]
[423415480,1780093840000,-166.69,8.024e-05,2]
[423415504,1780093840000,-500.0,8.219e-05,2]
[423415520,1780093840000,-500.0,8.377e-05,2]
[423415514,1780093840000,-500.0,8.219e-05,2]
[423415516,1780093840000,-158.42,8.257e-05,2]
[423415492,1780093840000,-500.0,8.219e-05,2]
[423415482,1780093840000,-158.42,8.096e-05,2]
[423415476,1780093840000,-5840.27,8e-05,2]
[423415473,1780093840000,-215.5484138,7.969e-05,2]
[423415443,1780093840000,-706391.75663532,7.845e-05,2]
[423415445,1780093840000,-158.42,7.856e-05,2]
[423415449,1780093840000,-9999.99,7.861e-05,2]
[423415447,1780093840000,-470.16,7.861e-05,2]
[423415453,1780093840000,-9999.99,7.881e-05,2]
[423415451,1780093840000,-299.99,7.881e-05,2]
[423415455,1780093840000,-53922.72,7.881e-05,2]
[423415459,1780093840000,-150.99,7.881e-05,2]
[423415463,1780093840000,-24999.99,7.881e-05,2]
[423415457,1780093840000,-18238.48,7.881e-05,2]
[423415467,1780093840000,-395.68094194,7.888e-05,2]
[423415465,1780093840000,-9999.99,7.881e-05,2]
[423415469,1780093840000,-158.42,7.936e-05,2]
[423415478,1780093840000,-158.42,8.016e-05,2]
[423415518,1780093840000,-158.42,8.337e-05,2]
[423415472,1780093840000,-160.0,7.96e-05,2]
[423415506,1780093840000,-500.0,8.219e-05,2]
[423415461,1780093840000,-9999.99,7.881e-05,2]
[423415512,1780093840000,-171.17,8.219e-05,2]
[423415567,1780093840000,-161.89,9.126e-05,2]
[423415559,1780093840000,-447.44,8.935e-05,2]
[423415565,1780093840000,-500.0,9.041e-05,2]
[423415561,1780093840000,-161.89,8.998e-05,2]
[423415569,1780093840000,-171.17,9.132e-05,2]
[423415572,1780093840000,-500.0,9.233e-05,2]
[423415589,1780093840000,-634.73903764,9.589e-05,2]
[423415574,1780093840000,-2000.0,9.247e-05,2]
[423415576,1780093840000,-161.89,9.254e-05,2]
[423415578,1780093840000,-500.0,9.315e-05,2]
[423415580,1780093840000,-161.89,9.381e-05,2]
[423415583,1780093840000,-587.0,9.482e-05,2]
[423415591,1780093840000,-171.17,9.589e-05,2]
[423415584,1780093840000,-2351.0,9.482e-05,2]
[423415586,1780093840000,-8085.6227911,9.497e-05,2]
[423415557,1780093840000,-161.89,8.871e-05,2]
[423415555,1780093840000,-500.0,8.767e-05,2]
[423415563,1780093840000,-387.93,9.04e-05,2]
[423415549,1780093840000,-171.17,8.676e-05,2]
[423415508,1780093840000,-300.0,8.219e-05,2]
[423415522,1780093840000,-500.0,8.377e-05,2]
[423415553,1780093840000,-161.89,8.743e-05,2]
[423415526,1780093840000,-500.0,8.377e-05,2]
[423415528,1780093840000,-500.0,8.377e-05,2]
[423415530,1780093840000,-250.0,8.377e-05,2]
[423415532,1780093840000,-191.53533937,8.377e-05,2]
[423415540,1780093840000,-500.0,8.493e-05,2]
[423415524,1780093840000,-160.51819613,8.377e-05,2]
[423415535,1780093840000,-1921.55391319,8.407e-05,2]
[423415536,1780093840000,-158.42,8.417e-05,2]
[423415551,1780093840000,-1600.0,8.732e-05,2]
[423415545,1780093840000,-420.0,8.62e-05,2]
[423415510,1780093840000,-2000.0,8.219e-05,2]
[423415542,1780093840000,-161.89,8.615e-05,2]
[423415538,1780093840000,-161.89,8.488e-05,2]
[423415547,1780093840000,-1680.0,8.62e-05,2]
[423415620,1780093841000,-150.0,9.658e-05,2]
[423415595,1780093841000,-150.23770178,9.616e-05,2]
[423415593,1780093841000,-266.5998,9.611e-05,2]
[423415603,1780093841000,-150.0,9.616e-05,2]
[423415599,1780093841000,-150.0,9.616e-05,2]
[423415601,1780093841000,-150.0,9.616e-05,2]
[423415618,1780093841000,-150.0,9.616e-05,2]
[423415616,1780093841000,-239.34994702,9.616e-05,2]
[423415605,1780093841000,-150.0,9.616e-05,2]
[423415624,1780093841000,-27449.64,9.67e-05,2]
[423415622,1780093841000,-15430.8503036,9.66e-05,2]
[423415597,1780093841000,-150.0,9.616e-05,2]
[423415607,1780093841000,-150.0,9.616e-05,2]
[423415630,1780093841000,-1600.0,9.703e-05,2]
[423415626,1780093841000,-350.0,9.696e-05,2]
[423415639,1780093841000,-10000.0,9.742e-05,2]
[423415637,1780093841000,-150.0,9.74e-05,2]
[423415635,1780093841000,-150.0,9.735e-05,2]
[423415644,1780093841000,-654.4863709,9.75e-05,2]
[423415641,1780093841000,-1471642.39203529,9.75e-05,2]
[423415609,1780093841000,-150.0,9.616e-05,2]
[423415614,1780093841000,-150.0,9.616e-05,2]
[423415628,1780093841000,-150.0,9.699e-05,2]
[423415611,1780093841000,-150.0,9.616e-05,2]
[423415632,1780093841000,-208.699696,9.712e-05,2]
[423416368,1780093846000,-500.0,7.836e-05,2]
[423416361,1780093846000,-500.0,7.836e-05,2]
[423416374,1780093846000,-500.0,7.836e-05,2]
[423416376,1780093846000,-500.0,7.836e-05,2]
[423416378,1780093846000,-500.0,7.836e-05,2]
[423416382,1780093846000,-379.55778541,7.836e-05,2]
[423416363,1780093846000,-500.0,7.836e-05,2]
[423416366,1780093846000,-500.0,7.836e-05,2]
[423416380,1780093846000,-500.0,7.836e-05,2]
[423416370,1780093846000,-500.0,7.836e-05,2]
[423416413,1780093846000,-31.17967959,7.836e-05,2]
[423416415,1780093846000,-500.0,7.836e-05,2]
[423416408,1780093846000,-120.44221459,7.836e-05,2]
[423416410,1780093846000,-468.82032041,7.836e-05,2]
[423416418,1780093846000,-500.0,7.836e-05,2]
[423416422,1780093846000,-470.15519994,7.836e-05,2]
[423416420,1780093846000,-500.0,7.836e-05,2]
[423416372,1780093846000,-605.45488365,7.836e-05,2]
[423416989,1780093896000,-584.7995,7.745e-05,2]
[423416990,1780093919000,-29.84480006,8.178e-05,2]
[423416991,1780093920000,330.0,9.753e-05,3]
[423416992,1780093950000,-323.47519994,8.178e-05,2]
[423416993,1780093971000,500.0,0.00039402,120]
[423416994,1780093976000,-656.06601655,8.62e-05,2]
[423416998,1780093978000,151.0,0.00039402,120]
[423416997,1780093978000,151.0,0.00039402,120]
[423416996,1780093978000,151.0,0.00039402,120]
[423416995,1780093978000,151.0,0.00039402,120]
[423417004,1780093979000,151.0,0.00039402,120]
[423416999,1780093979000,151.0,0.00039402,120]
[423417000,1780093979000,151.0,0.00039402,120]
[423417001,1780093979000,151.0,0.00039402,120]
[423417002,1780093979000,151.0,0.00039402,120]
[423417003,1780093979000,151.0,0.00039402,120]
[423417005,1780093979000,151.0,0.00039402,120]
[423417006,1780093979000,151.0,0.00039402,120]
[423417007,1780093979000,151.0,0.00039402,120]
[423417013,1780093979000,151.0,0.00039402,120]
[423417012,1780093979000,151.0,0.00039402,120]
[423417011,1780093979000,151.0,0.00039402,120]
[423417014,1780093979000,151.0,0.00039402,120]
[423417009,1780093979000,151.0,0.00039402,120]
[423417008,1780093979000,151.0,0.00039402,120]
[423417010,1780093979000,151.0,0.00039402,120]
[423417015,1780094004000,-151.0,8.16e-05,2]
[423417016,1780094027000,-156.587,8.16e-05,2]
[423417024,1780094057000,-199.37384035,8.16e-05,2]
[423417027,1780094080000,-466.85,8.178e-05,2]
[423417028,1780094082000,14006.66850332,0.00039402,120]
[423417030,1780094132000,-215.5484138,8.628e-05,2]
[423417031,1780094133000,497.0,9.842e-05,5]
[423417032,1780094134000,-215.5484138,8.637e-05,2]
[423417033,1780094164000,-960.0,8.629e-05,2]
[423417034,1780094217000,-500.0,8.681e-05,2]
[423417035,1780094231000,500.0,0.00039402,120]
[423417036,1780094271000,-266.5998,8.633e-05,2]
[423417037,1780094275000,151.0,0.00039402,120]
[423417039,1780094275000,151.0,0.00039402,120]
[423417038,1780094275000,151.0,0.00039402,120]
[423417049,1780094276000,151.0,0.00039402,120]
[423417048,1780094276000,151.0,0.00039402,120]
[423417047,1780094276000,151.0,0.00039402,120]
[423417046,1780094276000,151.0,0.00039402,120]
[423417045,1780094276000,151.0,0.00039402,120]
[423417044,1780094276000,151.0,0.00039402,120]
[423417043,1780094276000,151.0,0.00039402,120]
[423417042,1780094276000,151.0,0.00039402,120]
[423417041,1780094276000,151.0,0.00039402,120]
[423417040,1780094276000,151.0,0.00039402,120]
[423417050,1780094277000,151.0,0.00039402,120]
[423417051,1780094277000,151.0,0.00039402,120]
[423417052,1780094277000,151.0,0.00039402,120]
[423417055,1780094278000,151.0,0.00039402,120]
[423417054,1780094278000,151.0,0.00039402,120]
[423417053,1780094278000,151.0,0.00039402,120]
[423417056,1780094279000,151.0,0.00039402,120]
[423417060,1780094289000,150.0,0.00039402,120]
[423417059,1780094289000,150.0,0.00039402,120]
[423417061,1780094290000,262.14659596,0.00039402,120]
[423417062,1780094327000,-1400.0,8.733e-05,2]
[423417063,1780094328000,330.0,9.753e-05,3]
[423417064,1780094351000,-579.88,8.733e-05,2]
[423417065,1780094532000,500.0,0.00039382,120]
[423417066,1780094536000,172.8999,0.00039382,120]
[423417067,1780094545000,2000.0,0.00039382,120]
[423417068,1780094547000,2000.0,0.00039382,120]
[423417070,1780094548000,2000.0,0.00039382,120]
[423417069,1780094548000,2000.0,0.00039382,120]
[423417072,1780094548000,2000.0,0.00039382,120]
[423417071,1780094548000,2000.0,0.00039382,120]
[423417074,1780094549000,2000.0,0.00039382,120]
[423417073,1780094549000,2000.0,0.00039382,120]
[423417076,1780094550000,1268.60898689,0.00039382,120]
[423417075,1780094550000,2000.0,0.00039382,120]
[423417078,1780094572000,151.0,0.00039382,120]
[423417077,1780094572000,151.0,0.00039382,120]
[423417080,1780094573000,277.35291553,0.00039382,120]
[423417079,1780094573000,151.0,0.00039382,120]
[423417082,1780094604000,500.0,0.00026999,120]
[423417081,1780094604000,500.0,0.00025666,120]
[423417083,1780094612000,283.4398297,0.00039395,120]
[423417084,1780094653000,330.0,9.753e-05,3]
[423417085,1780094705000,392.0,9.757e-05,5]
[423417087,1780094832000,500.0,0.00039395,120]
[423417088,1780094846000,500.0,0.00027871,120]
[423417090,1780094846000,531.0,0.00027871,120]
[423417089,1780094846000,500.0,0.00027871,120]
[423417091,1780094861000,499.935,0.00039395,120]
[423417092,1780094897000,-150.0,7.825e-05,2]
[423417096,1780094919000,1065.0,0.00027597,120]
[423417095,1780094919000,1065.0,0.00027597,120]
[423417094,1780094919000,1065.0,0.00027597,120]
[423417093,1780094919000,-1249.4394511,7.922e-05,2]
[423417097,1780094920000,1065.0,0.00027597,120]
[423417099,1780094920000,1065.0,0.00027597,120]
[423417098,1780094920000,1065.0,0.00027597,120]
[423417101,1780094920000,1065.0,0.00027597,120]
[423417102,1780094920000,1537.0,0.00027597,120]
[423417100,1780094920000,1065.0,0.00027597,120]
[423417103,1780094950000,-500.0,7.855e-05,2]
[423417108,1780094951000,1800.0,0.0001,3]
[423417107,1780094951000,1500.0,9.9e-05,3]
[423417106,1780094951000,1100.0,9e-05,3]
[423417105,1780094951000,700.0,8.9e-05,3]
[423417104,1780094951000,300.0,8.8e-05,3]
[423417109,1780094966000,-171.04413391,7.855e-05,2]
[423417110,1780094970000,500.0,0.00027323,120]
[423417111,1780094970000,500.0,0.00027323,120]
[423417112,1780094971000,500.0,0.00027323,120]
[423417114,1780094971000,500.0,0.00027323,120]
[423417113,1780094971000,500.0,0.00027323,120]
[423417115,1780094972000,680.0,0.00027323,120]
[423417116,1780095006000,-1632.62085422,7.855e-05,2]
[423417117,1780095030000,-1632.62085422,7.855e-05,2]
[423417433,1780095054000,-322.5,8.218e-05,2]
[423417429,1780095054000,-500.0,8.218e-05,2]
[423417436,1780095054000,-214.87951861,8.218e-05,2]
[423417437,1780095054000,-285.12048139,8.218e-05,2]
[423417438,1780095054000,-500.0,8.218e-05,2]
[423417439,1780095054000,-404.38150334,8.218e-05,2]
[423417442,1780095054000,-242.29849666,8.218e-05,2]
[423417443,1780095054000,-500.0,8.218e-05,2]
[423417445,1780095054000,-500.0,8.218e-05,2]
[423417453,1780095054000,-500.0,8.218e-05,2]
[423417440,1780095054000,-95.61849666,8.218e-05,2]
[423417441,1780095054000,-257.70150334,8.218e-05,2]
[423417449,1780095054000,-500.0,8.218e-05,2]
[423417448,1780095054000,-500.0,8.218e-05,2]
[423417450,1780095054000,-500.0,8.218e-05,2]
[423417457,1780095054000,-150.99,8.237e-05,2]
[423417447,1780095054000,-500.0,8.218e-05,2]
[423417430,1780095054000,-438.57072971,8.218e-05,2]
[423417444,1780095054000,-500.0,8.218e-05,2]
[423417432,1780095054000,-500.0,8.218e-05,2]
[423417419,1780095054000,-500.0,8.218e-05,2]
[423417431,1780095054000,-500.0,8.218e-05,2]
[423417412,1780095054000,-250.0,7.881e-05,2]
[423417411,1780095054000,-597.60415765,7.855e-05,2]
[423417413,1780095054000,-832.0,7.907e-05,2]
[423417415,1780095054000,-250.0,7.986e-05,2]
[423417416,1780095054000,-161.9,8.067e-05,2]
[423417414,1780095054000,-447.44,7.922e-05,2]
[423417418,1780095054000,-1200.0,8.217e-05,2]
[423417422,1780095054000,-323.05761165,8.218e-05,2]
[423417434,1780095054000,-500.0,8.218e-05,2]
[423417420,1780095054000,-500.0,8.218e-05,2]
[423417421,1780095054000,-500.0,8.218e-05,2]
[423417423,1780095054000,-500.0,8.218e-05,2]
[423417425,1780095054000,-223.98580195,8.218e-05,2]
[423417435,1780095054000,-500.0,8.218e-05,2]
[423417424,1780095054000,-500.0,8.218e-05,2]
[423417427,1780095054000,-500.0,8.218e-05,2]
[423417428,1780095054000,-500.0,8.218e-05,2]
[423417426,1780095054000,-500.0,8.218e-05,2]
[423417417,1780095054000,-1400.0,8.178e-05,2]
[423417452,1780095054000,-625.95376946,8.218e-05,2]
[423417446,1780095054000,-500.0,8.218e-05,2]
[423417456,1780095054000,-161.9,8.237e-05,2]
[423417478,1780095054000,-165.84319569,8.855e-05,2]
[423417479,1780095054000,-500.0,8.855e-05,2]
[423417480,1780095054000,-500.0,8.855e-05,2]
[423417482,1780095054000,-810.0,8.856e-05,2]
[423417492,1780095054000,-810.0,8.856e-05,2]
[423417483,1780095054000,-810.0,8.856e-05,2]
[423417481,1780095054000,-500.0,8.855e-05,2]
[423417487,1780095054000,-810.0,8.856e-05,2]
[423417485,1780095054000,-810.0,8.856e-05,2]
[423417488,1780095054000,-500.0,8.856e-05,2]
[423417490,1780095054000,-810.0,8.856e-05,2]
[423417484,1780095054000,-500.0,8.856e-05,2]
[423417491,1780095054000,-500.0,8.856e-05,2]
[423417489,1780095054000,-500.0,8.856e-05,2]
[423417494,1780095054000,-810.0,8.856e-05,2]
[423417497,1780095054000,-150.0,8.856e-05,2]
[423417496,1780095054000,-810.0,8.856e-05,2]
[423417493,1780095054000,-810.0,8.856e-05,2]
[423417451,1780095054000,-500.0,8.218e-05,2]
[423417476,1780095054000,-500.0,8.855e-05,2]
[423417474,1780095054000,-500.0,8.855e-05,2]
[423417486,1780095054000,-500.0,8.856e-05,2]
[423417475,1780095054000,-500.0,8.855e-05,2]
[423417471,1780095054000,-500.0,8.855e-05,2]
[423417454,1780095054000,-154.06,8.219e-05,2]
[423417458,1780095054000,-161.9,8.407e-05,2]
[423417463,1780095054000,-161.9,8.577e-05,2]
[423417460,1780095054000,-299.99,8.407e-05,2]
[423417461,1780095054000,-1298.12,8.407e-05,2]
[423417495,1780095054000,-646.84843633,8.856e-05,2]
[423417465,1780095054000,-500.0,8.64e-05,2]
[423417464,1780095054000,-5000.0,8.64e-05,2]
[423417459,1780095054000,-4067.46,8.407e-05,2]
[423417455,1780095054000,-2000.0,8.219e-05,2]
[423417462,1780095054000,-1000.0,8.564e-05,2]
[423417466,1780095054000,-500.0,8.64e-05,2]
[423417473,1780095054000,-500.0,8.855e-05,2]
[423417472,1780095054000,-480.98788404,8.855e-05,2]
[423417470,1780095054000,-161.9,8.747e-05,2]
[423417477,1780095054000,-500.0,8.855e-05,2]
[423417469,1780095054000,-487.5231891,8.676e-05,2]
[423417467,1780095054000,-250.0,8.64e-05,2]
[423417468,1780095054000,-154.06,8.676e-05,2]
[423417517,1780095055000,-150.0,8.856e-05,2]
[423417518,1780095055000,-150.0,8.856e-05,2]
[423417511,1780095055000,-810.0,8.856e-05,2]
[423417512,1780095055000,-810.0,8.856e-05,2]
[423417509,1780095055000,-810.0,8.856e-05,2]
[423417516,1780095055000,-150.0,8.856e-05,2]
[423417510,1780095055000,-810.0,8.856e-05,2]
[423417508,1780095055000,-810.0,8.856e-05,2]
[423417507,1780095055000,-810.0,8.856e-05,2]
[423417502,1780095055000,-810.0,8.856e-05,2]
[423417503,1780095055000,-810.0,8.856e-05,2]
[423417500,1780095055000,-154.33010067,8.856e-05,2]
[423417501,1780095055000,-810.0,8.856e-05,2]
[423417498,1780095055000,-150.0,8.856e-05,2]
[423417505,1780095055000,-810.0,8.856e-05,2]
[423417506,1780095055000,-810.0,8.856e-05,2]
[423417499,1780095055000,-810.0,8.856e-05,2]
[423417513,1780095055000,-810.0,8.856e-05,2]
[423417504,1780095055000,-810.0,8.856e-05,2]
[423417515,1780095055000,-150.0,8.856e-05,2]
[423417528,1780095055000,-500.0,8.856e-05,2]
[423417526,1780095055000,-500.0,8.856e-05,2]
[423417514,1780095055000,-824.37631794,8.856e-05,2]
[423417539,1780095055000,330.0,9.753e-05,3]
[423417538,1780095055000,-445.76430862,8.856e-05,2]
[423417537,1780095055000,-151.83984903,8.856e-05,2]
[423417534,1780095055000,-500.0,8.856e-05,2]
[423417531,1780095055000,-500.0,8.856e-05,2]
[423417533,1780095055000,-272.65503051,8.856e-05,2]
[423417535,1780095055000,-500.0,8.856e-05,2]
[423417532,1780095055000,-500.0,8.856e-05,2]
[423417523,1780095055000,-500.0,8.856e-05,2]
[423417536,1780095055000,-348.16015097,8.856e-05,2]
[423417524,1780095055000,-500.0,8.856e-05,2]
[423417530,1780095055000,-500.0,8.856e-05,2]
[423417529,1780095055000,-203.58126379,8.856e-05,2]
[423417521,1780095055000,-500.0,8.856e-05,2]
[423417522,1780095055000,-500.0,8.856e-05,2]
[423417519,1780095055000,-196.26755632,8.856e-05,2]
[423417520,1780095055000,-500.0,8.856e-05,2]
[423417525,1780095055000,-150.0,8.856e-05,2]
[423417527,1780095055000,-150.0,8.856e-05,2]
[423417564,1780095056000,-150.0,8.856e-05,2]
[423417555,1780095056000,-441.0,8.856e-05,2]
[423417557,1780095056000,-441.0,8.856e-05,2]
[423417558,1780095056000,-441.0,8.856e-05,2]
[423417559,1780095056000,-441.0,8.856e-05,2]
[423417561,1780095056000,-441.0,8.856e-05,2]
[423417563,1780095056000,-441.0,8.856e-05,2]
[423417560,1780095056000,-441.0,8.856e-05,2]
[423417567,1780095056000,-431.91506202,8.856e-05,2]
[423417568,1780095056000,-9.08493798,8.856e-05,2]
[423417556,1780095056000,-441.0,8.856e-05,2]
[423417569,1780095056000,-441.0,8.856e-05,2]
[423417562,1780095056000,-150.0,8.856e-05,2]
[423417554,1780095056000,-441.0,8.856e-05,2]
[423417545,1780095056000,-150.0,8.856e-05,2]
[423417565,1780095056000,-441.0,8.856e-05,2]
[423417552,1780095056000,-441.0,8.856e-05,2]
[423417549,1780095056000,-225.81971642,8.856e-05,2]
[423417548,1780095056000,-150.0,8.856e-05,2]
[423417546,1780095056000,-400.70328852,8.856e-05,2]
[423417550,1780095056000,-164.95130155,8.856e-05,2]
[423417551,1780095056000,-441.0,8.856e-05,2]
[423417547,1780095056000,-150.0,8.856e-05,2]
[423417553,1780095056000,-441.0,8.856e-05,2]
[423417544,1780095056000,-500.0,8.856e-05,2]
[423417543,1780095056000,-500.0,8.856e-05,2]
[423417541,1780095056000,-500.0,8.856e-05,2]
[423417540,1780095056000,-54.23569138,8.856e-05,2]
[423417572,1780095056000,-441.0,8.856e-05,2]
[423417566,1780095056000,-181.27230281,8.856e-05,2]
[423417570,1780095056000,-219.51590405,8.856e-05,2]
[423417542,1780095056000,-535.9946373,8.856e-05,2]
[423417574,1780095056000,-500.0,8.856e-05,2]
[423417571,1780095056000,-221.48409595,8.856e-05,2]
[423417602,1780095056000,-441.0,8.856e-05,2]
[423417603,1780095056000,-500.0,8.856e-05,2]
[423417597,1780095056000,-500.0,8.856e-05,2]
[423417599,1780095056000,-441.0,8.856e-05,2]
[423417596,1780095056000,-500.0,8.856e-05,2]
[423417600,1780095056000,-500.0,8.856e-05,2]
[423417601,1780095056000,-565.52515364,8.856e-05,2]
[423417595,1780095056000,-500.0,8.856e-05,2]
[423417594,1780095056000,-500.0,8.856e-05,2]
[423417591,1780095056000,-500.0,8.856e-05,2]
[423417593,1780095056000,-500.0,8.856e-05,2]
[423417592,1780095056000,-500.0,8.856e-05,2]
[423417587,1780095056000,-500.0,8.856e-05,2]
[423417589,1780095056000,-500.0,8.856e-05,2]
[423417598,1780095056000,-500.0,8.856e-05,2]
[423417586,1780095056000,-500.0,8.856e-05,2]
[423417590,1780095056000,-441.0,8.856e-05,2]
[423417575,1780095056000,-269.59984139,8.856e-05,2]
[423417577,1780095056000,-441.0,8.856e-05,2]
[423417578,1780095056000,-500.0,8.856e-05,2]
[423417573,1780095056000,-500.0,8.856e-05,2]
[423417579,1780095056000,-500.0,8.856e-05,2]
[423417576,1780095056000,-441.0,8.856e-05,2]
[423417580,1780095056000,-500.0,8.856e-05,2]
[423417583,1780095056000,-500.0,8.856e-05,2]